fUSD/lending_fUSD_20241030
["ID","MTS","AMOUNT","RATE_DAILY","PERIOD"]
[341039821,1730299900283,-500.0,0.00034,2]
[341039822,1730299900293,-500.0,0.00034,2]
[341039823,1730299900303,-500.0,0.00034,2]
[341039824,1730299900313,-500.0,0.00034,2]
[341039825,1730299900322,-500.0,0.00034,2]
[341039826,1730299900332,-500.0,0.00034,2]
[341039827,1730299900341,-500.0,0.00034,2]
[341039828,1730299900351,-500.0,0.00034,2]
[341039829,1730299900360,-500.0,0.00034,2]
[341039830,1730299900370,-500.0,0.00034,2]
[341039831,1730299900379,-500.0,0.00034,2]
[341039832,1730299900389,-500.0,0.00034,2]
[341039833,1730299900398,-500.0,0.00034,2]
[341039834,1730299900407,-500.0,0.00034,2]
[341039835,1730299900417,-500.0,0.00034,2]
[341039836,1730299900426,-500.0,0.00034,2]
[341039837,1730299900436,-500.0,0.00034,2]
[341039838,1730299900445,-500.0,0.00034,2]
[341039839,1730299900455,-500.0,0.00034,2]
[341039840,1730299900465,-500.0,0.00034,2]
[341039841,1730299900475,-500.0,0.00034,2]
[341039842,1730299900484,-500.0,0.00034,2]
[341039843,1730299900494,-500.0,0.00034,2]
[341039844,1730299900504,-500.0,0.00034,2]
[341039845,1730299900514,-500.0,0.00034,2]
[341039846,1730299900524,-500.0,0.00034,2]
[341039847,1730299900533,-500.0,0.00034,2]
[341039848,1730299900543,-500.0,0.00034,2]
[341039849,1730299900552,-500.0,0.00034,2]
[341039850,1730299900562,-208.35,0.00034037,2]
[341039851,1730299900572,-150.733,0.00034073,2]
[341039852,1730299900582,-25147.2788915,0.00034081,7]
[341039853,1730299900591,-8759.41155121,0.00034081,7]
[341039854,1730299900600,-7110.25939237,0.00034081,7]
[341039855,1730299900610,-57364.527354,0.00034081,7]
[341039856,1730299900620,-10146.00002,0.00034081,7]
[341039857,1730299900630,-5666.34321848,0.00034081,7]
[341039858,1730299900639,-17183.3853903,0.00034081,7]
[341039859,1730299900649,-301.35400986,0.000341,2]
[341039860,1730299900660,-2003.08347009,0.000341,15]
[341039861,1730299900670,-1269.15119497,0.00034144,30]
[341039862,1730299900681,-150.0,0.000342,7]
[341039863,1730299900691,-176.32569507,0.000342,7]
[341039864,1730299900701,-150.0,0.000342,7]
[341039865,1730299900711,-1302.09831988,0.00034245,30]
[341039866,1730299900721,-1007.49,0.00034245,5]
[341039867,1730299900731,-542.0,0.00034246,5]
[341039868,1730299900741,-537.5223753,0.00034246,5]
[341039869,1730299900750,-500.0,0.00034246,5]
[341039870,1730299900762,-500.0,0.00034246,5]
[341039871,1730299900771,-500.0,0.00034246,5]
[341039872,1730299900781,-500.0,0.00034246,5]
[341039873,1730299900790,-500.0,0.00034246,5]
[341039874,1730299900799,-500.0,0.00034246,5]
[341039875,1730299900809,-500.0,0.00034246,5]
[341039876,1730299900819,-500.0,0.00034246,5]
[341039877,1730299900830,-500.0,0.00034246,5]
[341039878,1730299900840,-500.0,0.00034246,5]
[341039879,1730299900850,-500.0,0.00034246,5]
[341039880,1730299900860,-500.0,0.00034246,5]
[341039881,1730299900874,-500.0,0.00034246,5]
[341039882,1730299900884,-819.18,0.00034246,5]
[341039883,1730299900893,-901.94,0.00034246,5]
[341039884,1730299900902,-872.05,0.00034246,5]
[341039885,1730299900912,-500.0,0.00034246,5]
[341039886,1730299900921,-500.0,0.00034246,5]
[341039887,1730299900931,-500.0,0.00034246,5]
[341039888,1730299900940,-583.57,0.00034246,5]
[341039889,1730299900949,-500.0,0.00034246,5]
[341039890,1730299900959,-500.0,0.00034246,5]
[341039891,1730299900969,-500.0,0.00034246,5]
[341039892,1730299900979,-500.0,0.00034246,5]
[341039893,1730299900989,-1319.61,0.00034246,5]
[341039894,1730299900999,-730.99,0.00034246,5]
[341039895,1730299901011,-500.0,0.00034246,5]
[341039896,1730299901020,-1251.63,0.00034246,5]
[341039897,1730299901029,-561.15,0.00034246,5]
[341039898,1730299901040,-500.0,0.00034246,5]
[341039899,1730299901049,-500.0,0.00034246,5]
[341039900,1730299901059,-700.33,0.00034246,5]
[341039901,1730299901070,-500.0,0.00034246,5]
[341039902,1730299901080,-500.0,0.00034246,5]
[341039903,1730299901089,-640.39,0.00034246,5]
[341039904,1730299901099,-520.52,0.00034246,5]
[341039905,1730299901108,-500.0,0.00034246,5]
[341039906,1730299901118,-500.0,0.00034246,5]
[341039907,1730299901127,-970.04,0.00034246,5]
[341039908,1730299901137,-500.0,0.00034246,5]
[341039909,1730299901146,-556.21,0.00034246,5]
[341039910,1730299901156,-500.0,0.00034246,5]
[341039911,1730299901166,-500.0,0.00034246,5]
[341039912,1730299901175,-967.06,0.00034246,5]
[341039913,1730299901185,-346.80794908,0.00034246,5]
[341039914,1730299901195,-551.47853372,0.00034246,7]
[341039915,1730299901204,-500.0,0.00034246,5]
[341039916,1730299901214,-731.56,0.00034246,5]
[341039917,1730299901223,-670.65,0.00034246,5]
[341039918,1730299901233,-1276.1,0.00034246,5]
[341039919,1730299901242,-1820.04,0.00034246,5]
[341039920,1730299901252,-500.0,0.00034246,5]
[341039921,1730299901263,-812.27,0.00034246,5]
[341039922,1730299901272,-834.4,0.00034246,5]
[341039923,1730299901282,-500.0,0.00034246,5]
[341039924,1730299901291,-500.0,0.00034246,5]
[341039925,1730299901301,-665.61,0.00034246,5]
[341039926,1730299901311,-500.0,0.00034246,5]
[341039927,1730299901320,-500.0,0.00034246,5]
[341039928,1730299901330,-500.0,0.00034246,5]
[341039929,1730299901339,-500.0,0.00034246,5]
[341039930,1730299901349,-500.0,0.00034246,5]
[341039931,1730299901358,-783.96,0.00034246,2]
[341039932,1730299901368,-500.0,0.00034246,5]
[341039933,1730299901377,-500.0,0.00034246,5]
[341039934,1730299901387,-500.0,0.00034246,5]
[341039935,1730299901396,-500.0,0.00034246,5]
[341039936,1730299901406,-760.38065762,0.00034246,5]
[341039937,1730299901417,-500.0,0.00034246,5]
[341039938,1730299901427,-890.32,0.00034246,5]
[341039939,1730299901436,-591.78,0.00034246,5]
[341039940,1730299901446,-901.09,0.00034246,5]
[341039941,1730299901455,-578.07478226,0.00034246,5]
[341039942,1730299901498,-500.0,0.00034246,5]
[341039943,1730299901509,-500.0,0.00034246,5]
[341039944,1730299901518,-1187.01,0.00034246,5]
[341039945,1730299901527,-500.0,0.00034246,5]
[341039946,1730299901537,-3247.79,0.00034246,5]
[341039947,1730299901546,-500.0,0.00034246,5]
[341039948,1730299901555,-500.0,0.00034246,5]
[341039949,1730299901564,-500.0,0.00034246,5]
[341039950,1730299901574,-500.0,0.00034246,5]
[341039951,1730299901583,-3761.91,0.00034246,5]
[341039952,1730299901592,-1089.14,0.00034246,5]
[341039953,1730299901602,-524.26,0.00034246,5]
[341039954,1730299901611,-500.0,0.00034246,5]
[341039955,1730299901620,-500.0,0.00034246,5]
[341039956,1730299901629,-500.0,0.00034246,5]
[341039957,1730299901638,-500.0,0.00034246,5]
[341039958,1730299901647,-500.0,0.00034246,5]
[341039959,1730299901657,-604.16,0.00034246,5]
[341039960,1730299901666,-500.0,0.00034246,5]
[341039961,1730299901676,-595.74,0.00034246,5]
[341039962,1730299901686,-562.07,0.00034246,5]
[341039963,1730299901695,-500.0,0.00034246,5]
[341039964,1730299901704,-500.0,0.00034246,5]
[341039965,1730299901714,-500.0,0.00034246,5]
[341039966,1730299901724,-500.0,0.00034246,5]
[341039967,1730299901734,-500.0,0.00034246,5]
[341039968,1730299901744,-500.0,0.00034246,5]
[341039969,1730299901753,-500.0,0.00034246,5]
[341039970,1730299901762,-500.0,0.00034246,5]
[341039971,1730299901772,-500.0,0.00034246,5]
[341039972,1730299901781,-1108.52,0.00034246,5]
[341039973,1730299901790,-899.38,0.00034246,5]
[341039974,1730299901800,-916.14,0.00034246,5]
[341039975,1730299901809,-500.0,0.00034246,5]
[341039976,1730299901818,-1147.86,0.00034246,5]
[341039977,1730299901828,-500.0,0.00034246,5]
[341039978,1730299901837,-617.7,0.00034246,5]
[341039979,1730299901846,-500.0,0.00034246,5]
[341039980,1730299901855,-1088.55,0.00034246,5]
[341039981,1730299901865,-500.0,0.00034246,5]
[341039982,1730299901876,-500.0,0.00034246,5]
[341039983,1730299901885,-883.27,0.00034246,5]
[341039984,1730299901894,-579.65,0.00034246,5]
[341039985,1730299901904,-500.0,0.00034246,5]
[341039986,1730299901914,-500.0,0.00034246,5]
[341039987,1730299901924,-6627.6,0.00034246,5]
[341039988,1730299901933,-1281.54,0.00034246,5]
[341039989,1730299901943,-670.52,0.00034246,5]
[341039990,1730299901953,-1308.28,0.00034246,5]
[341039991,1730299901963,-500.0,0.00034246,5]
[341039992,1730299901972,-500.0,0.00034246,5]
[341039993,1730299901982,-594.96,0.00034246,5]
[341039994,1730299901993,-1527.21,0.00034246,5]
[341039995,1730299902003,-1968.52,0.00034246,5]
[341039996,1730299902014,-1235.78,0.00034246,5]
[341039997,1730299902023,-7748.92,0.00034246,120]
[341039998,1730299902033,-2222.72,0.00034246,5]
[341039999,1730299902042,-500.0,0.00034246,5]
[341040000,1730299902051,-500.0,0.00034246,5]
[341040001,1730299902060,-1647.28,0.00034246,5]
[341040002,1730299902070,-3841.76,0.00034246,5]
[341040003,1730299902079,-509.11,0.00034246,5]
[341040004,1730299902088,-993.65,0.00034246,5]
[341040005,1730299902098,-264.52526192,0.00034246,5]
[341040006,1730299902108,-255.89111847,0.00034246,5]
[341040007,1730299902117,-862.1,0.00034246,5]
[341040008,1730299902127,-500.0,0.00034246,5]
[341040009,1730299902136,-500.0,0.00034246,5]
[341040010,1730299902146,-500.0,0.00034246,5]
[341040011,1730299902155,-500.0,0.00034246,5]
[341040012,1730299902164,-969.25,0.00034246,5]
[341040013,1730299902174,-500.0,0.00034246,5]
[341040014,1730299902184,-500.0,0.00034246,5]
[341040015,1730299902193,-500.0,0.00034246,5]
[341040016,1730299902202,-500.0,0.00034246,5]
[341040017,1730299902212,-500.0,0.00034246,5]
[341040018,1730299902221,-500.0,0.00034246,5]
[341040019,1730299902231,-500.0,0.00034246,5]
[341040020,1730299902240,-625.17,0.00034246,5]
[341040021,1730299902250,-500.0,0.00034246,5]
[341040022,1730299902259,-1018.56,0.00034246,5]
[341040023,1730299902269,-500.0,0.00034246,5]
[341040024,1730299902279,-1112.57,0.00034246,5]
[341040025,1730299902288,-691.4,0.00034246,5]
[341040026,1730299902298,-500.0,0.00034246,5]
[341040027,1730299902308,-500.0,0.00034246,5]
[341040028,1730299902318,-1388.66,0.00034246,5]
[341040029,1730299902327,-500.0,0.00034246,5]
[341040030,1730299902336,-2096.63,0.00034246,5]
[341040031,1730299902345,-500.0,0.00034246,5]
[341040032,1730299902355,-500.0,0.00034246,5]
[341040033,1730299902364,-500.0,0.00034246,5]
[341040034,1730299902374,-500.0,0.00034246,5]
[341040035,1730299902383,-810.09,0.00034246,5]
[341040036,1730299902392,-787.04,0.00034246,5]
[341040037,1730299902401,-739.87,0.00034246,5]
[341040038,1730299902410,-500.0,0.00034246,5]
[341040039,1730299902420,-1711.46,0.00034246,5]
[341040040,1730299902429,-500.0,0.00034246,5]
[341040041,1730299902439,-763.03,0.00034246,5]
[341040042,1730299902448,-1990.98,0.00034246,5]
[341040043,1730299902457,-500.0,0.00034246,5]
[341040044,1730299902467,-500.0,0.00034246,5]
[341040045,1730299902475,-1191.88,0.00034246,5]
[341040046,1730299902485,-619.44,0.00034246,5]
[341040047,1730299902494,-500.0,0.00034246,5]
[341040048,1730299902503,-500.0,0.00034246,5]
[341040049,1730299902514,-539.45,0.00034246,5]
[341040050,1730299902523,-500.0,0.00034246,5]
[341040051,1730299902533,-975.25,0.00034246,5]
[341040052,1730299902542,-1354.01,0.00034246,5]
[341040053,1730299902552,-1051.76,0.00034246,5]
[341040054,1730299902561,-500.0,0.00034246,5]
[341040055,1730299902571,-1468.71,0.00034246,5]
[341040056,1730299902580,-3673.0,0.00034246,5]
[341040057,1730299902591,-906.56,0.00034246,30]
[341040058,1730299902601,-500.0,0.00034246,5]
[341040059,1730299902610,-500.0,0.00034246,5]
[341040060,1730299902619,-500.0,0.00034246,5]
[341040061,1730299902629,-830.86,0.00034246,5]
[341040062,1730299902638,-500.0,0.00034246,5]
[341040063,1730299902648,-1086.86,0.00034246,5]
[341040064,1730299902657,-646.72,0.00034246,5]
[341040065,1730299902666,-2002.55,0.00034246,5]
[341040066,1730299902675,-500.0,0.00034246,5]
[341040067,1730299902685,-500.0,0.00034246,5]
[341040068,1730299902697,-736.0,0.00034246,5]
[341040069,1730299902707,-545.73,0.00034246,5]
[341040070,1730299902716,-500.0,0.00034246,5]
[341040071,1730299902725,-617.04,0.00034246,5]
[341040072,1730299902734,-645.56,0.00034246,5]
[341040073,1730299902744,-652.51,0.00034246,5]
[341040074,1730299902754,-500.0,0.00034246,5]
[341040075,1730299902766,-500.0,0.00034246,5]
[341040076,1730299902776,-636.15,0.00034246,5]
[341040077,1730299902786,-542.47,0.00034246,5]
[341040078,1730299902797,-500.0,0.00034246,5]
[341040079,1730299902807,-726.06,0.00034246,5]
[341040080,1730299902817,-500.0,0.00034246,5]
[341040081,1730299902827,-500.0,0.00034246,5]
[341040082,1730299902838,-901.66,0.00034246,5]
[341040083,1730299902850,-500.0,0.00034246,5]
[341040084,1730299902861,-500.0,0.00034246,5]
[341040085,1730299902875,-500.0,0.00034246,5]
[341040086,1730299902885,-500.0,0.00034246,5]
[341040087,1730299902895,-500.0,0.00034246,5]
[341040088,1730299902905,-402.42574298,0.00034246,5]
[341040089,1730299902917,-1220.63,0.00034246,5]
[341040090,1730299902927,-500.0,0.00034246,5]
[341040091,1730299902937,-820.05,0.00034246,5]
[341040092,1730299902947,-644.94,0.00034246,5]
[341040093,1730299902958,-500.0,0.00034246,5]
[341040094,1730299902968,-500.0,0.00034246,5]
[341040095,1730299902978,-637.3,0.00034246,5]
[341040096,1730299902987,-500.0,0.00034246,5]
[341040097,1730299902998,-5935.2,0.00034246,5]
[341040098,1730299903010,-731.89,0.00034246,5]
[341040099,1730299903020,-571.04,0.00034246,5]
[341040100,1730299903029,-500.0,0.00034246,5]
[341040101,1730299903039,-500.0,0.00034246,5]
[341040102,1730299903048,-954.6,0.00034246,5]
[341040103,1730299903057,-500.0,0.00034246,5]
[341040104,1730299903067,-651.63,0.00034246,5]
[341040105,1730299903076,-500.0,0.00034246,5]
[341040106,1730299903086,-626.15,0.00034246,5]
[341040107,1730299903096,-519.21,0.00034246,5]
[341040108,1730299903105,-675.01,0.00034246,5]
[341040109,1730299903115,-500.0,0.00034246,5]
[341040110,1730299903124,-500.0,0.00034246,5]
[341040111,1730299903133,-500.0,0.00034246,5]
[341040112,1730299903143,-504.63538047,0.00034277,5]
[341040113,1730299903151,-301.35400986,0.000343,2]
[341040114,1730299903161,-347.45,0.00034321,2]
[341040115,1730299903170,-2003.08347009,0.00034367,15]
[341040116,1730299903179,-1161.23411231,0.0003437,2]
[341040117,1730299903189,-3000.0,0.000344,12]
[341040118,1730299903199,-600.0,0.000345,12]
[341040119,1730299903208,-301.35400986,0.000345,2]
[341040120,1730299903217,-1007.49,0.00034519,5]
[341040121,1730299903226,-542.0,0.0003452,5]
[341040122,1730299903235,-500.0,0.0003452,5]
[341040123,1730299903245,-500.0,0.0003452,5]
[341040124,1730299903254,-500.0,0.0003452,5]
[341040125,1730299903267,-500.0,0.0003452,5]
[341040126,1730299903276,-500.0,0.0003452,5]
[341040127,1730299903285,-500.0,0.0003452,5]
[341040128,1730299903294,-500.0,0.0003452,5]
[341040129,1730299903303,-500.0,0.0003452,5]
[341040130,1730299903313,-500.0,0.0003452,5]
[341040131,1730299903322,-500.0,0.0003452,5]
[341040132,1730299903332,-500.0,0.0003452,5]
[341040133,1730299903341,-500.0,0.0003452,5]
[341040134,1730299903351,-500.0,0.0003452,5]
[341040135,1730299903361,-819.18,0.0003452,5]
[341040136,1730299903372,-901.94,0.0003452,5]
[341040137,1730299903382,-872.05,0.0003452,5]
[341040138,1730299903392,-500.0,0.0003452,5]
[341040139,1730299903401,-500.0,0.0003452,5]
[341040140,1730299903410,-500.0,0.0003452,5]
[341040141,1730299903421,-583.57,0.0003452,5]
[341040142,1730299903430,-500.0,0.0003452,5]
[341040143,1730299903439,-391.56394674,0.0003452,5]
[341040144,1730299903449,-513.1485008,0.0003452,5]
[341040145,1730299903458,-500.0,0.0003452,5]
[341040146,1730299903467,-1319.61,0.0003452,5]
[341040147,1730299903476,-730.99,0.0003452,5]
[341040148,1730299903486,-363.84127386,0.0003452,5]
[341040149,1730299903495,-1251.63,0.0003452,5]
[341040150,1730299903504,-561.15,0.0003452,5]
[341040151,1730299903515,-500.0,0.0003452,5]
[341040152,1730299903524,-500.0,0.0003452,5]
[341040153,1730299903533,-700.33,0.0003452,5]
[341040154,1730299903543,-173.37918066,0.0003452,5]
[341040155,1730299903552,-500.0,0.0003452,5]
[341040156,1730299903562,-640.39,0.0003452,5]
[341040157,1730299903571,-520.52,0.0003452,5]
[341040158,1730299903580,-610.62288782,0.0003452,5]
[341040159,1730299903589,-218.96693135,0.0003452,5]
[341040160,1730299903599,-970.04,0.0003452,5]
[341040161,1730299903608,-500.0,0.0003452,5]
[341040162,1730299903617,-556.21,0.0003452,5]
[341040163,1730299903626,-500.0,0.0003452,5]
[341040164,1730299903635,-500.0,0.0003452,5]
[341040165,1730299903645,-967.06,0.0003452,5]
[341040166,1730299903654,-500.0,0.0003452,5]
[341040167,1730299903663,-731.56,0.0003452,5]
[341040168,1730299903672,-670.65,0.0003452,5]
[341040169,1730299903682,-1276.1,0.0003452,5]
[341040170,1730299903692,-1820.04,0.0003452,5]
[341040171,1730299903701,-500.0,0.0003452,5]
[341040172,1730299903711,-812.27,0.0003452,5]
[341040173,1730299903720,-834.4,0.0003452,5]
[341040174,1730299903729,-500.0,0.0003452,5]
[341040175,1730299903739,-500.0,0.0003452,5]
[341040176,1730299903748,-665.61,0.0003452,5]
[341040177,1730299903758,-500.0,0.0003452,5]
[341040178,1730299903774,-500.0,0.0003452,5]
[341040179,1730299903784,-613.86104963,0.0003452,5]
[341040180,1730299903793,-500.0,0.0003452,5]
[341040181,1730299903802,-500.0,0.0003452,5]
[341040182,1730299903811,-783.96,0.0003452,2]
[341040183,1730299903820,-500.0,0.0003452,5]
[341040184,1730299903829,-500.0,0.0003452,5]
[341040185,1730299903839,-500.0,0.0003452,5]
[341040186,1730299903848,-500.0,0.0003452,5]
[341040187,1730299903857,-500.0,0.0003452,5]
[341040188,1730299903867,-890.32,0.0003452,5]
[341040189,1730299903877,-591.78,0.0003452,5]
[341040190,1730299903886,-901.09,0.0003452,5]
[341040191,1730299903895,-500.0,0.0003452,5]
[341040192,1730299903905,-500.0,0.0003452,5]
[341040193,1730299903915,-1187.01,0.0003452,5]
[341040194,1730299903924,-500.0,0.0003452,5]
[341040195,1730299903934,-3247.79,0.0003452,5]
[341040196,1730299903944,-500.0,0.0003452,5]
[341040197,1730299903954,-500.0,0.0003452,5]
[341040198,1730299903963,-500.0,0.0003452,5]
[341040199,1730299903972,-500.0,0.0003452,5]
[341040200,1730299903981,-3761.91,0.0003452,5]
[341040201,1730299903991,-1089.14,0.0003452,5]
[341040202,1730299904001,-524.26,0.0003452,5]
[341040203,1730299904011,-500.0,0.0003452,5]
[341040204,1730299904020,-500.0,0.0003452,5]
[341040205,1730299904029,-500.0,0.0003452,5]
[341040206,1730299904038,-500.0,0.0003452,5]
[341040207,1730299904048,-500.0,0.0003452,5]
[341040208,1730299904058,-604.16,0.0003452,5]
[341040209,1730299904067,-500.0,0.0003452,5]
[341040210,1730299904077,-595.74,0.0003452,5]
[341040211,1730299904086,-562.07,0.0003452,5]
[341040212,1730299904095,-500.0,0.0003452,5]
[341040213,1730299904105,-500.0,0.0003452,5]
[341040214,1730299904115,-500.0,0.0003452,5]
[341040215,1730299904124,-500.0,0.0003452,5]
[341040216,1730299904134,-500.0,0.0003452,5]
[341040217,1730299904143,-500.0,0.0003452,5]
[341040218,1730299904153,-588.09790505,0.0003452,5]
[341040219,1730299904163,-500.0,0.0003452,5]
[341040220,1730299904173,-500.0,0.0003452,5]
[341040221,1730299904182,-1108.52,0.0003452,5]
[341040222,1730299904191,-899.38,0.0003452,5]
[341040223,1730299904201,-916.14,0.0003452,5]
[341040224,1730299904211,-500.0,0.0003452,5]
[341040225,1730299904221,-1147.86,0.0003452,5]
[341040226,1730299904230,-500.0,0.0003452,5]
[341040227,1730299904240,-617.7,0.0003452,5]
[341040228,1730299904250,-500.0,0.0003452,5]
[341040229,1730299904261,-1088.55,0.0003452,5]
[341040230,1730299904270,-500.0,0.0003452,5]
[341040231,1730299904280,-500.0,0.0003452,5]
[341040232,1730299904290,-883.27,0.0003452,5]
[341040233,1730299904300,-579.65,0.0003452,5]
[341040234,1730299904309,-500.0,0.0003452,5]
[341040235,1730299904319,-500.0,0.0003452,5]
[341040236,1730299904328,-6627.6,0.0003452,5]
[341040237,1730299904337,-1281.54,0.0003452,5]
[341040238,1730299904347,-670.52,0.0003452,5]
[341040239,1730299904356,-1308.28,0.0003452,5]
[341040240,1730299904365,-500.0,0.0003452,5]
[341040241,1730299904375,-500.0,0.0003452,5]
[341040242,1730299904384,-594.96,0.0003452,5]
[341040243,1730299904394,-1527.21,0.0003452,5]
[341040244,1730299904403,-1968.52,0.0003452,5]
[341040245,1730299904413,-1235.78,0.0003452,5]
[341040246,1730299904423,-2222.72,0.0003452,5]
[341040247,1730299904432,-500.0,0.0003452,5]
[341040248,1730299904442,-160.59610439,0.0003452,5]
[341040249,1730299904451,-1647.28,0.0003452,5]
[341040250,1730299904460,-3841.76,0.0003452,5]
[341040251,1730299904470,-509.11,0.0003452,5]
[341040252,1730299904479,-993.65,0.0003452,5]
[341040253,1730299904489,-862.1,0.0003452,5]
[341040254,1730299904499,-500.0,0.0003452,5]
[341040255,1730299904511,-500.0,0.0003452,5]
[341040256,1730299904520,-405.97554793,0.0003452,5]
[341040257,1730299904529,-601.04959768,0.0003452,5]
[341040258,1730299904539,-969.25,0.0003452,5]
[341040259,1730299904548,-500.0,0.0003452,5]
[341040260,1730299904557,-500.0,0.0003452,5]
[341040261,1730299904567,-500.0,0.0003452,5]
[341040262,1730299904576,-500.0,0.0003452,5]
[341040263,1730299904586,-500.0,0.0003452,5]
[341040264,1730299904595,-500.0,0.0003452,5]
[341040265,1730299904605,-500.0,0.0003452,5]
[341040266,1730299904615,-625.17,0.0003452,5]
[341040267,1730299904624,-500.0,0.0003452,5]
[341040268,1730299904633,-1018.56,0.0003452,5]
[341040269,1730299904643,-476.38597953,0.0003452,5]
[341040270,1730299904652,-1112.57,0.0003452,5]
[341040271,1730299904662,-691.4,0.0003452,5]
[341040272,1730299904671,-500.0,0.0003452,5]
[341040273,1730299904681,-500.0,0.0003452,5]
[341040274,1730299904690,-1388.66,0.0003452,5]
[341040275,1730299904699,-500.0,0.0003452,5]
[341040276,1730299904709,-2096.63,0.0003452,5]
[341040277,1730299904719,-272.58453679,0.0003452,5]
[341040278,1730299904730,-280.58273631,0.0003452,5]
[341040279,1730299904740,-500.0,0.0003452,5]
[341040280,1730299904749,-500.0,0.0003452,5]
[341040281,1730299904760,-810.09,0.0003452,5]
[341040282,1730299904769,-787.04,0.0003452,5]
[341040283,1730299904780,-739.87,0.0003452,5]
[341040284,1730299904790,-500.0,0.0003452,5]
[341040285,1730299904800,-1711.46,0.0003452,5]
[341040286,1730299904809,-500.0,0.0003452,5]
[341040287,1730299904819,-763.03,0.0003452,5]
[341040288,1730299904830,-1990.98,0.0003452,5]
[341040289,1730299904839,-500.0,0.0003452,5]
[341040290,1730299904850,-500.0,0.0003452,5]
[341040291,1730299904860,-1191.88,0.0003452,5]
[341040292,1730299904874,-619.44,0.0003452,5]
[341040293,1730299904884,-500.0,0.0003452,5]
[341040294,1730299904894,-500.0,0.0003452,5]
[341040295,1730299904904,-539.45,0.0003452,5]
[341040296,1730299904915,-543.51216658,0.0003452,5]
[341040297,1730299904925,-975.25,0.0003452,5]
[341040298,1730299904935,-1354.01,0.0003452,5]
[341040299,1730299904947,-1051.76,0.0003452,5]
[341040300,1730299904956,-500.0,0.0003452,5]
[341040301,1730299904966,-1468.71,0.0003452,5]
[341040302,1730299904975,-3673.0,0.0003452,5]
[341040303,1730299904985,-906.56,0.0003452,30]
[341040304,1730299904994,-500.0,0.0003452,5]
[341040305,1730299905003,-500.0,0.0003452,5]
[341040306,1730299905014,-500.0,0.0003452,5]
[341040307,1730299905023,-830.86,0.0003452,5]
[341040308,1730299905034,-1086.86,0.0003452,5]
[341040309,1730299905044,-500.0,0.0003452,5]
[341040310,1730299905053,-646.72,0.0003452,5]
[341040311,1730299905063,-2002.55,0.0003452,5]
[341040312,1730299905072,-500.0,0.0003452,5]
[341040313,1730299905082,-500.0,0.0003452,5]
[341040314,1730299905093,-736.0,0.0003452,5]
[341040315,1730299905102,-545.73,0.0003452,5]
[341040316,1730299905111,-500.0,0.0003452,5]
[341040317,1730299905121,-617.04,0.0003452,5]
[341040318,1730299905131,-645.56,0.0003452,5]
[341040319,1730299905141,-652.51,0.0003452,5]
[341040320,1730299905151,-500.0,0.0003452,5]